{"text_format":"1","workbook":"xlsx","n_sheets":1,"sheets":["Planilha1"],"not_rendered":{"charts":0,"images":0,"macros":1,"external_links":0,"defined_names":0,"comments":0,"pivot_tables":0},"unopened":[],"bounds":{"document_bytes":16777216,"sheet_cells":100000,"rows_first":2000,"rows_last":500,"rows_between":2000,"halvings":0,"cell_chars":16384,"cell_head_chars":4096},"cells_cut":0,"cells_raw":0,"read":"whole","date_system":"1900"}

{"sheet":"Planilha1","index":0,"n_rows":53,"n_cols":19,"rows_kept":53,"cut":false,"hidden":false,"merged":[[1,1,3,1],[1,6,3,8],[5,1,6,10],[8,1,8,9],[10,1,11,1],[10,3,11,3],[10,4,11,4],[10,6,11,6],[10,8,11,8],[10,9,11,9],[14,1,14,9],[16,1,17,1],[16,3,17,3],[16,4,17,4],[16,6,17,6],[16,8,17,8],[16,9,17,9],[20,1,20,9],[22,1,23,1],[22,3,23,3],[22,4,23,4],[22,6,23,6],[22,8,23,8],[22,9,23,9],[26,1,26,9],[28,1,29,1],[28,3,29,3],[28,4,29,4],[28,6,29,6],[28,8,29,8],[28,9,29,9],[32,1,32,9],[34,1,35,1],[34,3,35,3],[34,4,35,4],[34,6,35,6],[34,8,35,8],[34,9,35,9],[38,1,38,9],[40,1,41,1],[40,3,41,3],[40,4,41,4],[40,6,41,6],[40,8,41,8],[40,9,41,9],[44,1,44,9],[46,1,47,1],[46,3,47,3],[46,4,47,4],[46,6,47,6],[46,8,47,8],[46,9,47,9],[50,1,50,9],[52,1,53,1],[52,3,53,3],[52,4,53,4],[52,6,53,6],[52,8,53,8],[52,9,53,9]]}
[]
[null,"Mapeamento de Tipos Psicológicos"]
[]
[]
[]
[null,"Esse é um teste para mapear seu tipo psicológico. Em cada uma das perguntas, responda apenas uma das opções com sua preferência no modo de agir e pensar."]
[]
[]
[null,"Se você tem algo importante (mas não urgente) para dizer a um colega que trabalha em outra cidade, você prefere se expressar:"]
[]
[null,"Por escrito",null,null,{"$f":"IF(N11=\"ERRO\",\"XX\",P11)","v":"XX"},null,"Por telefone",null,null,{"$f":"IF(N11=\"ERRO\",\"XX\",S11)","v":"XX"},null,null,null,{"$f":"IF(O11=R11,\"Erro\",\"OK\")","v":"Erro"},false,{"$f":"IF(O11=FALSE,0,1)","v":0},null,false,{"$f":"IF(R11=FALSE,0,1)","v":0}]
[]
[]
[]
[null,"Ao participar de uma festa ou outro evento social, você:"]
[]
[null,"Costuma conversar com várias pessoas, incluindo desconhecidos",null,null,{"$f":"IF(N17=\"ERRO\",\"XX\",P17)","v":"XX"},null,"Prefere conversar com poucas pessoas, já conhecidos",null,null,{"$f":"IF(N17=\"ERRO\",\"XX\",S17)","v":"XX"},null,null,null,{"$f":"IF(O17=R17,\"Erro\",\"OK\")","v":"Erro"},false,{"$f":"IF(O17=FALSE,0,1)","v":0},null,false,{"$f":"IF(R17=FALSE,0,1)","v":0}]
[]
[]
[]
[null,"Você costuma ferir os sentimentos alheios sem perceber?"]
[]
[null,"Nunca ou muito raramente",null,null,{"$f":"IF(N23=\"ERRO\",\"XX\",P23)","v":"XX"},null,"De vez em quando",null,null,{"$f":"IF(N23=\"ERRO\",\"XX\",S23)","v":"XX"},null,null,null,{"$f":"IF(O23=R23,\"Erro\",\"OK\")","v":"Erro"},false,{"$f":"IF(O23=FALSE,0,1)","v":0},null,false,{"$f":"IF(R23=FALSE,0,1)","v":0}]
[]
[]
[]
[null,"Ao ler um livro você prefere:"]
[]
[null,"O estilo literário, cheio de frases de efeitos e metáforas",null,null,{"$f":"IF(N29=\"ERRO\",\"XX\",P29)","v":"XX"},null,"O estilo jornalístico, com frases mais simples e descrições mais próximas da realidade",null,null,{"$f":"IF(N29=\"ERRO\",\"XX\",S29)","v":"XX"},null,null,null,{"$f":"IF(O29=R29,\"Erro\",\"OK\")","v":"Erro"},false,{"$f":"IF(O29=FALSE,0,1)","v":0},null,false,{"$f":"IF(R29=FALSE,0,1)","v":0}]
[]
[]
[]
[null,"Você sente prazer em:"]
[]
[null,"Discutir um assunto a fundo até que sua opinião prevaleça",null,null,{"$f":"IF(N35=\"ERRO\",\"XX\",P35)","v":"XX"},null,"Chegar a um consenso o mais rápido possível",null,null,{"$f":"IF(N35=\"ERRO\",\"XX\",S35)","v":"XX"},null,null,null,{"$f":"IF(O35=R35,\"Erro\",\"OK\")","v":"Erro"},false,{"$f":"IF(O35=FALSE,0,1)","v":0},null,false,{"$f":"IF(R35=FALSE,0,1)","v":0}]
[]
[]
[]
[null,"Ao expor seu ponto de vista sobre determinado assunto, você se considera convincente a ponto de mudar a opinião das pessoas?"]
[]
[null,"Sim",null,null,{"$f":"IF(N41=\"ERRO\",\"XX\",P41)","v":"XX"},null,"Não",null,null,{"$f":"IF(N41=\"ERRO\",\"XX\",S41)","v":"XX"},null,null,null,{"$f":"IF(O41=R41,\"Erro\",\"OK\")","v":"Erro"},false,{"$f":"IF(O41=FALSE,0,1)","v":0},null,false,{"$f":"IF(R41=FALSE,0,1)","v":0}]
[]
[]
[]
[null,"Ao escolher uma possível solução para um problema, você geralmente:"]
[]
[null,"Escolhe uma saída já experimentada",null,null,{"$f":"IF(N47=\"ERRO\",\"XX\",P47)","v":"XX"},null,"Tenta um novo caminho",null,null,{"$f":"IF(N47=\"ERRO\",\"XX\",S47)","v":"XX"},null,null,null,{"$f":"IF(O47=R47,\"Erro\",\"OK\")","v":"Erro"},false,{"$f":"IF(O47=FALSE,0,1)","v":0},null,false,{"$f":"IF(R47=FALSE,0,1)","v":0}]
[]
[]
[]
[null,"Se tivesse de falar sobre um assunto que você domina para um grupo com mais de cinqüenta pessoas, você:"]
[]
[null,"Permaneceria tranqüilo, quase como se estivesse conversando com uma só pessoa",null,null,{"$f":"IF(N53=\"ERRO\",\"XX\",P53)","v":"XX"},null,"Ficaria nervoso",null,null,{"$f":"IF(N53=\"ERRO\",\"XX\",S53)","v":"XX"},null,null,null,{"$f":"IF(O53=R53,\"Erro\",\"OK\")","v":"Erro"},false,{"$f":"IF(O53=FALSE,0,1)","v":0},null,false,{"$f":"IF(R53=FALSE,0,1)","v":0}]